fUST/lending_fUST_20260523
["ID","MTS","AMOUNT","RATE_DAILY","PERIOD"]
[422842447,1779511839000,-957.14,8.219e-05,2]
[422842451,1779511839000,-1943.34,8.219e-05,2]
[422842450,1779511839000,-500.0,8.219e-05,2]
[422842452,1779511839000,-649.34,8.219e-05,2]
[422842454,1779511839000,-619.03,8.219e-05,2]
[422842455,1779511839000,-620.03,8.219e-05,2]
[422842473,1779511839000,-531.94,8.219e-05,2]
[422842453,1779511839000,-500.0,8.219e-05,2]
[422842457,1779511839000,-571.06,8.219e-05,2]
[422842458,1779511839000,-829.56287904,8.219e-05,2]
[422842459,1779511839000,-1156.64,8.219e-05,2]
[422842462,1779511839000,-500.0,8.219e-05,2]
[422842460,1779511839000,-500.0,8.219e-05,2]
[422842463,1779511839000,-631.84,8.219e-05,2]
[422842465,1779511839000,-1376.89,8.219e-05,2]
[422842464,1779511839000,-500.0,8.219e-05,2]
[422842467,1779511839000,-276.20237745,8.219e-05,2]
[422842466,1779511839000,-500.0,8.219e-05,2]
[422842468,1779511839000,-500.0,8.219e-05,2]
[422842469,1779511839000,-500.0,8.219e-05,2]
[422842470,1779511839000,-500.0,8.219e-05,2]
[422842471,1779511839000,-500.0,8.219e-05,2]
[422842456,1779511839000,-653.9,8.219e-05,2]
[422842507,1779511839000,-502.31696861,8.219e-05,2]
[422842548,1779511839000,-1241.13,8.219e-05,2]
[422842510,1779511839000,-500.0,8.219e-05,2]
[422842545,1779511839000,-506.17,8.219e-05,2]
[422842541,1779511839000,-1261.91,8.219e-05,2]
[422842546,1779511839000,-233.82700192,8.219e-05,2]
[422842543,1779511839000,-500.0,8.219e-05,2]
[422842547,1779511839000,-500.0,8.219e-05,2]
[422842549,1779511839000,-590.96,8.219e-05,2]
[422842550,1779511839000,-500.0,8.219e-05,2]
[422842553,1779511839000,-2115.75,8.219e-05,2]
[422842552,1779511839000,-1153.79,8.219e-05,2]
[422842551,1779511839000,-3977.04,8.219e-05,2]
[422842555,1779511839000,-500.0,8.219e-05,2]
[422842557,1779511839000,-656.97,8.219e-05,2]
[422842556,1779511839000,-918.6,8.219e-05,2]
[422842558,1779511839000,-500.0,8.219e-05,2]
[422842560,1779511839000,-532.94,8.219e-05,2]
[422842559,1779511839000,-693.12,8.219e-05,2]
[422842562,1779511839000,-500.0,8.219e-05,2]
[422842561,1779511839000,-500.0,8.219e-05,2]
[422842568,1779511839000,-501.97,8.219e-05,2]
[422842563,1779511839000,-831.85,8.219e-05,2]
[422842566,1779511839000,-516.97864683,8.219e-05,2]
[422842567,1779511839000,-293.949433,8.219e-05,2]
[422842564,1779511839000,-500.0,8.219e-05,2]
[422842565,1779511839000,-500.0,8.219e-05,2]
[422842570,1779511839000,-745.24,8.219e-05,2]
[422842569,1779511839000,-1038.24,8.219e-05,2]
[422842571,1779511839000,-500.0,8.219e-05,2]
[422842572,1779511839000,-500.0,8.219e-05,2]
[422842505,1779511839000,-1745.2,8.219e-05,2]
[422842544,1779511839000,-500.0,8.219e-05,2]
[422842542,1779511839000,-4125.22,8.219e-05,2]
[422842554,1779511839000,-500.0,8.219e-05,2]
[422842540,1779511839000,-1145.59,8.219e-05,2]
[422842522,1779511839000,-500.0,8.219e-05,2]
[422842520,1779511839000,-942.78,8.219e-05,2]
[422842521,1779511839000,-500.0,8.219e-05,2]
[422842519,1779511839000,-1412.2,8.219e-05,2]
[422842517,1779511839000,-534.06,8.219e-05,2]
[422842518,1779511839000,-500.0,8.219e-05,2]
[422842524,1779511839000,-1476.82,8.219e-05,2]
[422842516,1779511839000,-501.41729193,8.219e-05,2]
[422842514,1779511839000,-151.0,8.219e-05,2]
[422842513,1779511839000,-813.09,8.219e-05,2]
[422842512,1779511839000,-151.0,8.219e-05,2]
[422842508,1779511839000,-501.13883409,8.219e-05,2]
[422842539,1779511839000,-500.0,8.219e-05,2]
[422842509,1779511839000,-1890.07,8.219e-05,2]
[422842515,1779511839000,-500.0,8.219e-05,2]
[422842527,1779511839000,-500.0,8.219e-05,2]
[422842511,1779511839000,-151.0,8.219e-05,2]
[422842538,1779511839000,-195.60399805,8.219e-05,2]
[422842523,1779511839000,-500.0,8.219e-05,2]
[422842537,1779511839000,-500.0,8.219e-05,2]
[422842536,1779511839000,-500.0,8.219e-05,2]
[422842535,1779511839000,-2352.29,8.219e-05,2]
[422842533,1779511839000,-539.41302224,8.219e-05,2]
[422842532,1779511839000,-500.0,8.219e-05,2]
[422842534,1779511839000,-500.0,8.219e-05,2]
[422842528,1779511839000,-500.0,8.219e-05,2]
[422842530,1779511839000,-500.0,8.219e-05,2]
[422842529,1779511839000,-500.0,8.219e-05,2]
[422842526,1779511839000,-612.76832539,8.219e-05,2]
[422842525,1779511839000,-500.0,8.219e-05,2]
[422842531,1779511839000,-2117.14,8.219e-05,2]
[422842622,1779511840000,-500.0,8.219e-05,2]
[422842617,1779511840000,-500.0,8.219e-05,2]
[422842612,1779511840000,-500.0,8.219e-05,2]
[422842614,1779511840000,-2824.56,8.219e-05,2]
[422842616,1779511840000,-186.47476,8.219e-05,2]
[422842615,1779511840000,-500.0,8.219e-05,2]
[422842606,1779511840000,-500.0,8.219e-05,2]
[422842611,1779511840000,-1367.25,8.219e-05,2]
[422842610,1779511840000,-500.0,8.219e-05,2]
[422842609,1779511840000,-500.0,8.219e-05,2]
[422842608,1779511840000,-500.0,8.219e-05,2]
[422842619,1779511840000,-730.6,8.219e-05,2]
[422842605,1779511840000,-500.0,8.219e-05,2]
[422842613,1779511840000,-977.79,8.219e-05,2]
[422842621,1779511840000,-570.43,8.219e-05,2]
[422842630,1779511840000,-500.0,8.219e-05,2]
[422842620,1779511840000,-500.0,8.219e-05,2]
[422842624,1779511840000,-500.0,8.219e-05,2]
[422842623,1779511840000,-440.95048802,8.219e-05,2]
[422842626,1779511840000,-500.0,8.219e-05,2]
[422842625,1779511840000,-901.08,8.219e-05,2]
[422842636,1779511840000,-500.0,8.219e-05,2]
[422842629,1779511840000,-500.0,8.219e-05,2]
[422842628,1779511840000,-500.0,8.219e-05,2]
[422842627,1779511840000,-1279.16,8.219e-05,2]
[422842635,1779511840000,-1495.52,8.219e-05,2]
[422842633,1779511840000,-500.0,8.219e-05,2]
[422842631,1779511840000,-500.0,8.219e-05,2]
[422842632,1779511840000,-500.0,8.219e-05,2]
[422842634,1779511840000,-695.06,8.219e-05,2]
[422842618,1779511840000,-500.0,8.219e-05,2]
[422842604,1779511840000,-500.0,8.219e-05,2]
[422842573,1779511840000,-500.0,8.219e-05,2]
[422842607,1779511840000,-500.0,8.219e-05,2]
[422842637,1779511840000,-5150.17,8.219e-05,2]
[422842575,1779511840000,-1390.34,8.219e-05,2]
[422842574,1779511840000,-1008.17,8.219e-05,2]
[422842577,1779511840000,-500.0,8.219e-05,2]
[422842576,1779511840000,-1072.89,8.219e-05,2]
[422842579,1779511840000,-580.97,8.219e-05,2]
[422842580,1779511840000,-2565.05,8.219e-05,2]
[422842581,1779511840000,-207.57850895,8.219e-05,2]
[422842578,1779511840000,-1112.82,8.219e-05,2]
[422842582,1779511840000,-653.3,8.219e-05,2]
[422842583,1779511840000,-716.82,8.219e-05,2]
[422842584,1779511840000,-714.61,8.219e-05,2]
[422842586,1779511840000,-1262.59,8.219e-05,2]
[422842585,1779511840000,-500.0,8.219e-05,2]
[422842603,1779511840000,-500.0,8.219e-05,2]
[422842595,1779511840000,-517.76,8.219e-05,2]
[422842587,1779511840000,-529.06,8.219e-05,2]
[422842591,1779511840000,-500.0,8.219e-05,2]
[422842588,1779511840000,-500.0,8.219e-05,2]
[422842589,1779511840000,-500.0,8.219e-05,2]
[422842592,1779511840000,-500.0,8.219e-05,2]
[422842593,1779511840000,-500.0,8.219e-05,2]
[422842590,1779511840000,-500.0,8.219e-05,2]
[422842596,1779511840000,-500.0,8.219e-05,2]
[422842597,1779511840000,-555.97,8.219e-05,2]
[422842598,1779511840000,-500.0,8.219e-05,2]
[422842600,1779511840000,-500.0,8.219e-05,2]
[422842599,1779511840000,-632.27,8.219e-05,2]
[422842601,1779511840000,-500.0,8.219e-05,2]
[422842602,1779511840000,-500.0,8.219e-05,2]
[422842594,1779511840000,-500.0,8.219e-05,2]
[422842638,1779511840000,-500.0,8.219e-05,2]
[422842648,1779511840000,-500.0,8.219e-05,2]
[422842641,1779511840000,-500.0,8.219e-05,2]
[422842676,1779511840000,-500.0,8.219e-05,2]
[422842678,1779511840000,-1796.77,8.219e-05,2]
[422842677,1779511840000,-500.0,8.219e-05,2]
[422842679,1779511840000,-465.84333834,8.219e-05,2]
[422842681,1779511840000,-1185.17,8.219e-05,2]
[422842680,1779511840000,-500.0,8.219e-05,2]
[422842682,1779511840000,-500.0,8.219e-05,2]
[422842683,1779511840000,-1541.84,8.219e-05,2]
[422842685,1779511840000,-2149.22,8.219e-05,2]
[422842686,1779511840000,-500.0,8.219e-05,2]
[422842687,1779511840000,-12294.68,8.219e-05,2]
[422842689,1779511840000,-500.0,8.219e-05,2]
[422842684,1779511840000,-905.19,8.219e-05,2]
[422842688,1779511840000,-8109.55,8.219e-05,2]
[422842674,1779511840000,-500.0,8.219e-05,2]
[422842691,1779511840000,-500.0,8.219e-05,2]
[422842692,1779511840000,-767.28,8.219e-05,2]
[422842694,1779511840000,-3903.73,8.219e-05,2]
[422842695,1779511840000,-703.82,8.219e-05,2]
[422842701,1779511840000,-2406.54,8.219e-05,2]
[422842698,1779511840000,-522.56,8.219e-05,2]
[422842700,1779511840000,-500.0,8.219e-05,2]
[422842703,1779511840000,-3962.6,8.219e-05,2]
[422842693,1779511840000,-500.0,8.219e-05,2]
[422842699,1779511840000,-993.09,8.219e-05,2]
[422842697,1779511840000,-3531.75,8.219e-05,2]
[422842696,1779511840000,-500.0,8.219e-05,2]
[422842704,1779511840000,-507.84,8.219e-05,2]
[422842705,1779511840000,-500.0,8.219e-05,2]
[422842639,1779511840000,-500.0,8.219e-05,2]
[422842690,1779511840000,-500.0,8.219e-05,2]
[422842675,1779511840000,-2812.88,8.219e-05,2]
[422842702,1779511840000,-500.0,8.219e-05,2]
[422842672,1779511840000,-500.0,8.219e-05,2]
[422842642,1779511840000,-500.0,8.219e-05,2]
[422842673,1779511840000,-500.0,8.219e-05,2]
[422842643,1779511840000,-500.0,8.219e-05,2]
[422842644,1779511840000,-500.0,8.219e-05,2]
[422842646,1779511840000,-3974.16,8.219e-05,2]
[422842645,1779511840000,-500.0,8.219e-05,2]
[422842640,1779511840000,-7326.29,8.219e-05,2]
[422842649,1779511840000,-500.0,8.219e-05,2]
[422842706,1779511840000,-4710.74,8.219e-05,2]
[422842651,1779511840000,-1990.43,8.219e-05,2]
[422842650,1779511840000,-167.1465223,8.219e-05,2]
[422842652,1779511840000,-2486.91,8.219e-05,2]
[422842654,1779511840000,-1141.78,8.219e-05,2]
[422842653,1779511840000,-706.09,8.219e-05,2]
[422842655,1779511840000,-500.0,8.219e-05,2]
[422842647,1779511840000,-500.0,8.219e-05,2]
[422842660,1779511840000,-869.91,8.219e-05,2]
[422842657,1779511840000,-500.0,8.219e-05,2]
[422842670,1779511840000,-3681.75,8.219e-05,2]
[422842669,1779511840000,-500.0,8.219e-05,2]
[422842668,1779511840000,-769.12,8.219e-05,2]
[422842666,1779511840000,-500.0,8.219e-05,2]
[422842664,1779511840000,-1179.74,8.219e-05,2]
[422842671,1779511840000,-500.0,8.219e-05,2]
[422842661,1779511840000,-1635.81,8.219e-05,2]
[422842656,1779511840000,-500.0,8.219e-05,2]
[422842665,1779511840000,-500.0,8.219e-05,2]
[422842663,1779511840000,-604.92,8.219e-05,2]
[422842667,1779511840000,-517.91,8.219e-05,2]
[422842658,1779511840000,-500.0,8.219e-05,2]
[422842659,1779511840000,-193.30759372,8.219e-05,2]
[422842662,1779511840000,-500.0,8.219e-05,2]
[422842751,1779511841000,-500.0,8.219e-05,2]
[422842746,1779511841000,-1013.13,8.219e-05,2]
[422842743,1779511841000,-500.0,8.219e-05,2]
[422842739,1779511841000,-500.0,8.219e-05,2]
[422842745,1779511841000,-500.0,8.219e-05,2]
[422842742,1779511841000,-53736.98,8.219e-05,2]
[422842747,1779511841000,-500.0,8.219e-05,2]
[422842748,1779511841000,-500.0,8.219e-05,2]
[422842750,1779511841000,-3874.87,8.219e-05,2]
[422842749,1779511841000,-3458.98,8.219e-05,2]
[422842741,1779511841000,-500.0,8.219e-05,2]
[422842744,1779511841000,-1604.98,8.219e-05,2]
[422842759,1779511841000,-158.07649011,8.219e-05,2]
[422842754,1779511841000,-6859.4,8.219e-05,2]
[422842752,1779511841000,-500.0,8.219e-05,2]
[422842756,1779511841000,-2756.2,8.219e-05,2]
[422842755,1779511841000,-500.0,8.219e-05,2]
[422842758,1779511841000,-167.82335814,8.219e-05,7]
[422842760,1779511841000,-316.15298022,8.219e-05,2]
[422842762,1779511841000,-155.90955403,8.219e-05,7]
[422842757,1779511841000,-294.85024564,8.219e-05,7]
[422842761,1779511841000,-474.22947033,8.219e-05,2]
[422842763,1779511841000,-311.81910806,8.219e-05,7]
[422842764,1779511841000,-467.72866209,8.219e-05,7]
[422842765,1779511841000,-202.21254333,8.219e-05,7]
[422842740,1779511841000,-4911.61,8.219e-05,2]
[422842766,1779511841000,-404.42508666,8.219e-05,7]
[422842753,1779511841000,-10070.93,8.219e-05,2]
[422842738,1779511841000,-2666.22,8.219e-05,2]
[422842722,1779511841000,-4719.27,8.219e-05,2]
[422842736,1779511841000,-500.0,8.219e-05,2]
[422842767,1779511841000,-500.0,8.219e-05,2]
[422842709,1779511841000,-1062.66,8.219e-05,2]
[422842707,1779511841000,-1442.73,8.219e-05,2]
[422842711,1779511841000,-500.0,8.219e-05,2]
[422842712,1779511841000,-2367.25,8.219e-05,2]
[422842710,1779511841000,-12162.61,8.219e-05,2]
[422842708,1779511841000,-500.0,8.219e-05,2]
[422842714,1779511841000,-171.25012711,8.219e-05,2]
[422842715,1779511841000,-500.0,8.219e-05,2]
[422842713,1779511841000,-500.0,8.219e-05,2]
[422842717,1779511841000,-500.0,8.219e-05,2]
[422842716,1779511841000,-8787.36,8.219e-05,2]
[422842718,1779511841000,-500.0,8.219e-05,2]
[422842737,1779511841000,-500.0,8.219e-05,2]
[422842719,1779511841000,-4352.59,8.219e-05,2]
[422842723,1779511841000,-500.0,8.219e-05,2]
[422842720,1779511841000,-500.0,8.219e-05,2]
[422842724,1779511841000,-500.0,8.219e-05,2]
[422842725,1779511841000,-1622.34,8.219e-05,2]
[422842726,1779511841000,-500.0,8.219e-05,2]
[422842729,1779511841000,-650.07,8.219e-05,2]
[422842727,1779511841000,-500.0,8.219e-05,2]
[422842732,1779511841000,-500.0,8.219e-05,2]
[422842731,1779511841000,-500.0,8.219e-05,2]
[422842733,1779511841000,-1153.19,8.219e-05,2]
[422842728,1779511841000,-3266.38,8.219e-05,2]
[422842735,1779511841000,-500.0,8.219e-05,2]
[422842734,1779511841000,-793.38,8.219e-05,2]
[422842721,1779511841000,-2188.99,8.219e-05,2]
[422842768,1779511841000,-231.67781873,8.219e-05,7]
[422842730,1779511841000,-1724.28,8.219e-05,2]
[422842770,1779511841000,-796.0,8.3e-05,2]
[422842799,1779511841000,-631.84,8.493e-05,2]
[422842805,1779511841000,-500.0,8.493e-05,2]
[422842804,1779511841000,-500.0,8.493e-05,2]
[422842807,1779511841000,-1211.11,8.493e-05,2]
[422842806,1779511841000,-500.0,8.493e-05,2]
[422842808,1779511841000,-531.94,8.493e-05,2]
[422842810,1779511841000,-500.0,8.493e-05,2]
[422842809,1779511841000,-1470.47,8.493e-05,2]
[422842811,1779511841000,-584.93589618,8.493e-05,2]
[422842812,1779511841000,-500.0,8.493e-05,2]
[422842813,1779511841000,-500.0,8.493e-05,2]
[422842816,1779511841000,-500.0,8.493e-05,2]
[422842814,1779511841000,-565.98,8.493e-05,2]
[422842803,1779511841000,-500.0,8.493e-05,2]
[422842815,1779511841000,-500.0,8.493e-05,2]
[422842818,1779511841000,-300.07706227,8.493e-05,2]
[422842820,1779511841000,-500.0,8.493e-05,2]
[422842819,1779511841000,-796.06,8.493e-05,2]
[422842824,1779511841000,-500.0,8.493e-05,2]
[422842827,1779511841000,-652.49,8.493e-05,2]
[422842822,1779511841000,-1956.77,8.493e-05,2]
[422842825,1779511841000,-528.98,8.493e-05,2]
[422842821,1779511841000,-38000.0,8.493e-05,2]
[422842823,1779511841000,-500.0,8.493e-05,2]
[422842826,1779511841000,-1745.2,8.493e-05,2]
[422842829,1779511841000,-500.0,8.493e-05,2]
[422842830,1779511841000,-813.09,8.493e-05,2]
[422842776,1779511841000,-152.0,8.342e-05,7]
[422842817,1779511841000,-654.69,8.493e-05,2]
[422842801,1779511841000,-1376.89,8.493e-05,2]
[422842828,1779511841000,-1890.07,8.493e-05,2]
[422842797,1779511841000,-500.0,8.493e-05,2]
[422842773,1779511841000,-623.63821612,8.33e-05,7]
[422842798,1779511841000,-500.0,8.493e-05,2]
[422842774,1779511841000,-606.63763,8.33e-05,7]
[422842775,1779511841000,-589.70049128,8.33e-05,7]
[422842771,1779511841000,-335.64671629,8.33e-05,7]
[422842769,1779511841000,-463.35563745,8.291e-05,7]
[422842778,1779511841000,-2143.9397,8.493e-05,2]
[422842777,1779511841000,-720.0,8.489e-05,2]
[422842780,1779511841000,-500.0,8.493e-05,2]
[422842779,1779511841000,-3001.5355,8.493e-05,2]
[422842781,1779511841000,-521.81,8.493e-05,2]
[422842782,1779511841000,-425.80424891,8.493e-05,2]
[422842785,1779511841000,-957.14,8.493e-05,2]
[422842783,1779511841000,-500.0,8.493e-05,2]
[422842772,1779511841000,-632.30596044,8.33e-05,2]
[422842784,1779511841000,-500.0,8.493e-05,2]
[422842786,1779511841000,-500.0,8.493e-05,2]
[422842802,1779511841000,-500.0,8.493e-05,2]
[422842793,1779511841000,-653.9,8.493e-05,2]
[422842794,1779511841000,-571.06,8.493e-05,2]
[422842795,1779511841000,-177.8884,8.493e-05,2]
[422842796,1779511841000,-1156.64,8.493e-05,2]
[422842791,1779511841000,-619.03,8.493e-05,2]
[422842790,1779511841000,-500.0,8.493e-05,2]
[422842789,1779511841000,-649.34,8.493e-05,2]
[422842788,1779511841000,-1943.34,8.493e-05,2]
[422842787,1779511841000,-500.0,8.493e-05,2]
[422842792,1779511841000,-620.03,8.493e-05,2]
[422842800,1779511841000,-500.0,8.493e-05,2]
[422842869,1779511842000,-532.94,8.493e-05,2]
[422842871,1779511842000,-831.85,8.493e-05,2]
[422842870,1779511842000,-500.0,8.493e-05,2]
[422842861,1779511842000,-1153.79,8.493e-05,2]
[422842868,1779511842000,-693.12,8.493e-05,2]
[422842860,1779511842000,-3977.04,8.493e-05,2]
[422842862,1779511842000,-2115.75,8.493e-05,2]
[422842867,1779511842000,-500.0,8.493e-05,2]
[422842859,1779511842000,-590.96,8.493e-05,2]
[422842866,1779511842000,-656.97,8.493e-05,2]
[422842872,1779511842000,-500.0,8.493e-05,2]
[422842880,1779511842000,-1008.17,8.493e-05,2]
[422842875,1779511842000,-1038.24,8.493e-05,2]
[422842876,1779511842000,-745.24,8.493e-05,2]
[422842874,1779511842000,-501.97,8.493e-05,2]
[422842873,1779511842000,-500.0,8.493e-05,2]
[422842881,1779511842000,-1390.34,8.493e-05,2]
[422842877,1779511842000,-500.0,8.493e-05,2]
[422842879,1779511842000,-529.71758377,8.493e-05,2]
[422842883,1779511842000,-500.0,8.493e-05,2]
[422842882,1779511842000,-1072.89,8.493e-05,2]
[422842885,1779511842000,-580.97,8.493e-05,2]
[422842895,1779511842000,-500.0,8.493e-05,2]
[422842865,1779511842000,-918.6,8.493e-05,2]
[422842884,1779511842000,-1112.82,8.493e-05,2]
[422842878,1779511842000,-500.0,8.493e-05,2]
[422842864,1779511842000,-500.0,8.493e-05,2]
[422842848,1779511842000,-500.0,8.493e-05,2]
[422842858,1779511842000,-1241.13,8.493e-05,2]
[422842888,1779511842000,-716.82,8.493e-05,2]
[422842831,1779511842000,-500.0,8.493e-05,2]
[422842833,1779511842000,-1412.2,8.493e-05,2]
[422842832,1779511842000,-534.06,8.493e-05,2]
[422842841,1779511842000,-500.0,8.493e-05,2]
[422842834,1779511842000,-942.78,8.493e-05,2]
[422842839,1779511842000,-500.0,8.493e-05,2]
[422842835,1779511842000,-500.0,8.493e-05,2]
[422842838,1779511842000,-1476.82,8.493e-05,2]
[422842837,1779511842000,-406.07176355,8.493e-05,2]
[422842842,1779511842000,-183.64648123,8.493e-05,2]
[422842836,1779511842000,-500.0,8.493e-05,2]
[422842840,1779511842000,-500.0,8.493e-05,2]
[422842843,1779511842000,-500.0,8.493e-05,2]
[422842844,1779511842000,-2117.14,8.493e-05,2]
[422842845,1779511842000,-500.0,8.493e-05,2]
[422842847,1779511842000,-2352.29,8.493e-05,2]
[422842849,1779511842000,-500.0,8.493e-05,2]
[422842850,1779511842000,-500.0,8.493e-05,2]
[422842851,1779511842000,-1145.59,8.493e-05,2]
[422842852,1779511842000,-1261.91,8.493e-05,2]
[422842853,1779511842000,-4125.22,8.493e-05,2]
[422842846,1779511842000,-500.0,8.493e-05,2]
[422842854,1779511842000,-500.0,8.493e-05,2]
[422842855,1779511842000,-500.0,8.493e-05,2]
[422842857,1779511842000,-500.0,8.493e-05,2]
[422842856,1779511842000,-506.17,8.493e-05,2]
[422842863,1779511842000,-500.0,8.493e-05,2]
[422842886,1779511842000,-2565.05,8.493e-05,2]
[422842908,1779511842000,-500.0,8.493e-05,2]
[422842894,1779511842000,-500.0,8.493e-05,2]
[422842917,1779511842000,-500.0,8.493e-05,2]
[422842921,1779511842000,-500.0,8.493e-05,2]
[422842927,1779511842000,-500.0,8.493e-05,2]
[422842929,1779511842000,-38000.0,8.493e-05,2]
[422842941,1779511842000,-500.0,8.493e-05,2]
[422842939,1779511842000,-1279.16,8.493e-05,2]
[422842931,1779511842000,-570.43,8.493e-05,2]
[422842887,1779511842000,-653.3,8.493e-05,2]
[422842940,1779511842000,-312.81253414,8.493e-05,2]
[422842942,1779511842000,-500.0,8.493e-05,2]
[422842933,1779511842000,-500.0,8.493e-05,2]
[422842937,1779511842000,-500.0,8.493e-05,2]
[422842919,1779511842000,-2824.56,8.493e-05,2]
[422842935,1779511842000,-500.0,8.493e-05,2]
[422842938,1779511842000,-500.0,8.493e-05,2]
[422842945,1779511842000,-695.06,8.493e-05,2]
[422842944,1779511842000,-500.0,8.493e-05,2]
[422842947,1779511842000,-500.0,8.493e-05,2]
[422842946,1779511842000,-1495.52,8.493e-05,2]
[422842949,1779511842000,-444.08001728,8.493e-05,2]
[422842948,1779511842000,-5150.17,8.493e-05,2]
[422842951,1779511842000,-3837.38770749,8.493e-05,2]
[422842950,1779511842000,-500.0,8.493e-05,2]
[422842953,1779511842000,-429.42624312,8.493e-05,2]
[422842952,1779511842000,-403.23498134,8.493e-05,2]
[422842954,1779511842000,-1075.08886253,8.493e-05,2]
[422842936,1779511842000,-901.08,8.493e-05,2]
[422842920,1779511842000,-500.0,8.493e-05,2]
[422842943,1779511842000,-500.0,8.493e-05,2]
[422842918,1779511842000,-977.79,8.493e-05,2]
[422842892,1779511842000,-529.06,8.493e-05,2]
[422842889,1779511842000,-714.61,8.493e-05,2]
[422842891,1779511842000,-1262.59,8.493e-05,2]
[422842916,1779511842000,-1367.25,8.493e-05,2]
[422842890,1779511842000,-500.0,8.493e-05,2]
[422842896,1779511842000,-500.0,8.493e-05,2]
[422842897,1779511842000,-500.0,8.493e-05,2]
[422842899,1779511842000,-500.0,8.493e-05,2]
[422842898,1779511842000,-500.0,8.493e-05,2]
[422842900,1779511842000,-517.76,8.493e-05,2]
[422842909,1779511842000,-500.0,8.493e-05,2]
[422842901,1779511842000,-608.16755628,8.493e-05,2]
[422842902,1779511842000,-555.97,8.493e-05,2]
[422842893,1779511842000,-500.0,8.493e-05,2]
[422842903,1779511842000,-500.0,8.493e-05,2]
[422842907,1779511842000,-398.73818043,8.493e-05,2]
[422842914,1779511842000,-500.0,8.493e-05,2]
[422842912,1779511842000,-500.0,8.493e-05,2]
[422842925,1779511842000,-730.6,8.493e-05,2]
[422842923,1779511842000,-500.0,8.493e-05,2]
[422842915,1779511842000,-500.0,8.493e-05,2]
[422842910,1779511842000,-500.0,8.493e-05,2]
[422842911,1779511842000,-500.0,8.493e-05,2]
[422842905,1779511842000,-500.0,8.493e-05,2]
[422842906,1779511842000,-500.0,8.493e-05,2]
[422842904,1779511842000,-632.27,8.493e-05,2]
[422842913,1779511842000,-500.0,8.493e-05,2]
[422842973,1779511844000,-1990.43,8.493e-05,2]
[422842977,1779511844000,-515.79773657,8.493e-05,2]
[422842985,1779511844000,-1179.74,8.493e-05,2]
[422842984,1779511844000,-604.92,8.493e-05,2]
[422842974,1779511844000,-2486.91,8.493e-05,2]
[422842983,1779511844000,-500.0,8.493e-05,2]
[422842975,1779511844000,-706.09,8.493e-05,2]
[422842971,1779511844000,-500.0,8.493e-05,2]
[422842970,1779511844000,-500.0,8.493e-05,2]
[422842967,1779511844000,-500.0,8.493e-05,2]
[422842969,1779511844000,-500.0,8.493e-05,2]
[422842965,1779511844000,-500.0,8.493e-05,2]
[422842966,1779511844000,-500.0,8.493e-05,2]
[422842963,1779511844000,-500.0,8.493e-05,2]
[422842964,1779511844000,-500.0,8.493e-05,2]
[422842962,1779511844000,-1581.15220552,8.493e-05,2]
[422842961,1779511844000,-500.0,8.219e-05,2]
[422842980,1779511844000,-500.0,8.493e-05,2]
[422842968,1779511844000,-3974.16,8.493e-05,2]
[422842979,1779511844000,-500.0,8.493e-05,2]
[422842981,1779511844000,-869.91,8.493e-05,2]
[422842982,1779511844000,-1635.81,8.493e-05,2]
[422843002,1779511844000,-442.44749053,8.493e-05,2]
[422843000,1779511844000,-500.0,8.493e-05,2]
[422843001,1779511844000,-1796.77,8.493e-05,2]
[422842999,1779511844000,-500.0,8.493e-05,2]
[422842994,1779511844000,-500.0,8.493e-05,2]
[422842996,1779511844000,-500.0,8.493e-05,2]
[422842997,1779511844000,-1625.86625462,8.493e-05,2]
[422842992,1779511844000,-1354.42713133,8.493e-05,2]
[422842993,1779511844000,-500.0,8.493e-05,2]
[422842995,1779511844000,-500.0,8.493e-05,2]
[422842990,1779511844000,-560.67983883,8.493e-05,2]
[422842991,1779511844000,-2327.32286867,8.493e-05,2]
[422842989,1779511844000,-769.12,8.493e-05,2]